bitfinex/quotes_BTCUSD_20251114
["timestamp","ask_amount","ask_price","bid_price","bid_amount"]
[1763134486140,0.20749721,96597.0,96596.0,0.00024221]
[1763134486573,0.00045145,96597.0,96596.0,0.00024221]
[1763134487141,0.10524799,96597.0,96596.0,0.00024221]
[1763134487559,0.31229375,96597.0,96596.0,0.00024221]
[1763134488152,0.10524799,96597.0,96596.0,0.00024221]
[1763134488350,0.31229375,96597.0,96596.0,0.00024221]
[1763134488530,0.10824799,96597.0,96596.0,0.00024221]
[1763134488933,0.10524799,96597.0,96596.0,0.00024221]
[1763134489250,0.10824799,96597.0,96596.0,0.00024221]
[1763134489852,0.16836743,96597.0,96596.0,0.00024221]
[1763134490454,0.16536743,96597.0,96596.0,0.00024221]
[1763134490761,0.16836743,96597.0,96596.0,0.00024221]
[1763134491336,0.48836743,96597.0,96596.0,0.00024221]
[1763134491551,0.10524799,96597.0,96596.0,0.00024221]
[1763134492159,0.10824799,96597.0,96596.0,0.00024221]
[1763134493387,0.10824799,96597.0,96596.0,0.02244875]
[1763134493595,0.00045145,96597.0,96596.0,0.02244875]
[1763134494020,0.00345145,96597.0,96596.0,0.02244875]
[1763134494531,0.82298658,96650.0,96602.0,0.36641874]
[1763134494532,0.07854139,96635.0,96602.0,0.36641874]
[1763134494793,0.10479654,96618.0,96604.0,0.36641874]
[1763134495043,0.10479654,96618.0,96606.0,0.04341874]
[1763134495268,0.10479654,96618.0,96607.0,0.02220654]
[1763134495472,0.10479654,96618.0,96608.0,0.02220654]
[1763134495693,0.01047965,96617.0,96609.0,0.16835509]
[1763134495919,0.10479654,96618.0,96610.0,0.02220654]
[1763134496144,0.10479654,96633.0,96611.0,0.02220654]
[1763134496362,0.10479654,96617.0,96612.0,0.02220654]
[1763134496572,0.10479654,96617.0,96613.0,0.02220654]
[1763134496774,0.10479654,96633.0,96614.0,0.02220654]
[1763134496923,0.10479654,96616.0,96615.0,0.02220654]
[1763134498332,0.1562996,96633.0,96615.0,0.02220654]
[1763134498544,0.1562996,96633.0,96616.0,0.02220654]
[1763134498739,0.10479654,96618.0,96617.0,0.02220654]
[1763134499346,0.11527619,96618.0,96602.0,0.0001349]
[1763134499595,0.10479654,96618.0,96603.0,0.02219484]
[1763134499885,0.10479654,96618.0,96604.0,0.02219484]
[1763134500059,0.10479654,96618.0,96605.0,0.02219484]
[1763134500265,0.10479654,96618.0,96606.0,0.02219484]
[1763134500473,0.10479654,96618.0,96607.0,0.02219484]
[1763134500707,0.01047965,96617.0,96608.0,0.02219484]
[1763134500913,0.01047965,96617.0,96609.0,0.0221979]
[1763134501122,0.323,96632.0,96610.0,0.0221979]
[1763134501332,0.001,96618.0,96611.0,0.06561664]
[1763134501470,0.001,96618.0,96613.0,0.04341874]
[1763134501676,0.10479654,96633.0,96614.0,0.0221979]
[1763134501677,0.10479654,96617.0,96614.0,0.0221979]
[1763134501885,0.10479654,96617.0,96615.0,0.0221979]
[1763134502086,0.10579654,96617.0,96616.0,0.0221979]
[1763134502505,0.10579654,96617.0,96602.0,0.0001349]
[1763134502506,0.2070329,96603.0,96602.0,0.0001349]
[1763134502706,0.10579654,96617.0,96602.0,0.0001349]
[1763134502921,0.20703076,96604.0,96602.0,0.0001349]
[1763134503167,0.323,96603.0,96602.0,0.0001349]
[1763134503389,0.53004576,96597.0,96561.0,0.02220008]
[1763134503612,0.00972,96580.0,96562.0,0.02220008]
[1763134503836,0.20711701,96564.0,96563.0,0.02220008]
[1763134504062,0.20711701,96564.0,96562.0,0.00045145]
[1763134504063,0.42779654,96563.0,96562.0,0.00045145]
[1763134504271,0.10479654,96563.0,96562.0,0.00045145]
[1763134504489,0.003,96603.0,96562.0,0.02265936]
[1763134504700,0.003,96603.0,96563.0,0.02220791]
[1763134504914,0.21736912,96610.0,96569.0,0.323]
[1763134505123,0.01034982,96620.0,96571.0,0.04341874]
[1763134505336,0.10479654,96580.0,96572.0,0.02220791]
[1763134505542,0.10479654,96580.0,96573.0,0.02220791]
[1763134505746,0.10479654,96580.0,96574.0,0.02220791]
[1763134505943,0.82298979,96620.0,96570.0,0.01999998]
[1763134505944,0.01034982,96620.0,96575.0,0.02220791]
[1763134506168,0.11527619,96595.0,96576.0,0.02220791]
[1763134506381,0.10479654,96580.0,96577.0,0.02220791]
[1763134506574,0.11527619,96595.0,96578.0,0.02220791]
[1763134506740,0.11527619,96595.0,96579.0,0.02220791]
[1763134506937,0.01152762,96594.0,96580.0,0.02220791]
[1763134507145,0.01152762,96594.0,96581.0,0.02220791]
[1763134507346,0.01152762,96594.0,96582.0,0.02220791]
[1763134507546,0.01152762,96594.0,96583.0,0.02220791]
[1763134507786,0.01152762,96594.0,96562.0,0.09942147]
[1763134507787,0.20706485,96589.0,96584.0,0.02220791]
[1763134507992,0.10479654,96595.0,96585.0,0.02220791]
[1763134507993,0.20706943,96586.0,96585.0,0.02220791]
[1763134508191,0.323,96589.0,96585.0,0.02220791]
[1763134508402,0.323,96589.0,96586.0,0.02226787]
[1763134508571,0.20706505,96588.0,96587.0,0.02226787]
[1763134509556,0.00972,96590.0,96587.0,0.02226787]
[1763134509895,0.00972,96590.0,96562.0,0.00045145]
[1763134509896,0.10479654,96564.0,96562.0,0.00045145]
[1763134511242,0.31191453,96564.0,96562.0,0.00045145]
[1763134511447,0.42779654,96579.0,96562.0,0.00045145]
[1763134511448,0.5,96615.0,96562.0,0.00045145]
[1763134511648,0.10479654,96578.0,96565.0,0.0371602]
[1763134511849,0.10479654,96578.0,96568.0,0.55491231]
[1763134512051,0.10479654,96578.0,96566.0,0.0371602]
[1763134512275,0.53005319,96594.0,96568.0,0.59207251]
[1763134512276,0.323,96594.0,96568.0,0.59207251]
[1763134512500,0.323,96594.0,96562.0,0.00045145]
[1763134512501,0.01034982,96620.0,96580.0,0.55491231]
[1763134512728,0.20701447,96612.0,96580.0,0.55491231]
[1763134512943,0.2070106,96614.0,96580.0,0.55491231]
[1763134513139,0.09962029,96595.0,96576.0,0.0371602]
[1763134513342,0.323,96616.0,96585.0,0.55491231]
[1763134513556,0.10479654,96599.0,96585.0,0.55491231]
[1763134513762,0.10479654,96599.0,96580.0,0.55491231]
[1763134513973,0.001,96595.0,96580.0,0.5649123]
[1763134514381,0.10479654,96584.0,96572.0,0.0371602]
[1763134514606,0.20708105,96581.0,96564.0,0.0371602]
[1763134514812,0.323,96583.0,96562.0,0.00045145]
[1763134515029,0.2070926,96576.0,96562.0,0.00045145]
[1763134515273,0.53007773,96583.0,96562.0,0.00045145]
[1763134515433,0.53007607,96583.0,96562.0,0.00045145]
[1763134515642,0.10479654,96569.0,96562.0,0.00045145]
[1763134515847,0.10479654,96584.0,96563.0,0.1466]
[1763134516072,0.20701106,96614.0,96575.0,0.323]
[1763134516283,0.10479654,96596.0,96585.0,0.55491231]
[1763134516472,0.10479654,96596.0,96586.0,0.3907]
[1763134517406,0.10479654,96596.0,96586.0,0.94561231]
[1763134517862,0.10479654,96596.0,96586.0,0.3907]
[1763134517863,0.01822849,96595.0,96586.0,0.3907]
[1763134518024,0.10479654,96594.0,96586.0,0.94561231]
[1763134518228,0.10479654,96594.0,96587.0,0.3907]
[1763134518664,0.2070637,96589.0,96588.0,0.3907]
[1763134519504,0.00972,96590.0,96570.0,0.1466]
[1763134519814,0.00972,96590.0,96562.0,0.00045145]
[1763134519815,0.20711866,96563.0,96562.0,0.00045145]
[1763134519973,0.10479654,96571.0,96562.0,0.00045145]
[1763134520240,0.18081939,96571.0,96562.0,0.00045145]
[1763134520370,0.10479654,96571.0,96562.0,0.00045145]
[1763134520575,0.003,96589.0,96570.0,0.00999999]
[1763134520777,0.10479654,96579.0,96570.0,0.00999999]
[1763134520959,0.10479654,96579.0,96570.0,0.5649123]
[1763134521363,0.002,96571.0,96570.0,0.55491231]
[1763134521570,0.10479654,96594.0,96587.0,0.00024228]
[1763134522226,0.20699967,96619.0,96587.0,0.00024228]
[1763134522227,0.10479654,96633.0,96590.0,0.00999999]
[1763134522400,0.10479654,96633.0,96607.0,0.55491231]
[1763134522619,0.10479654,96633.0,96620.0,0.55491231]
[1763134523117,0.01050278,96670.0,96630.0,0.00999999]
[1763134523370,0.10479654,96647.0,96640.0,0.00999999]
[1763134523576,0.10479654,96647.0,96631.0,0.04341874]
[1763134523577,0.10492743,96647.0,96631.0,0.04341874]
[1763134523789,0.10492743,96647.0,96630.0,0.5649123]
[1763134523790,0.002,96633.0,96630.0,0.5649123]
[1763134523994,0.002,96633.0,96630.0,0.00999999]
[1763134524392,0.10492743,96647.0,96630.0,0.00999999]
[1763134524798,0.10479654,96632.0,96630.0,0.55491231]
[1763134525038,0.10492743,96647.0,96610.0,0.01999998]
[1763134525039,0.10492743,96647.0,96621.0,0.04341874]
[1763134525244,0.10492743,96647.0,96630.0,0.5649123]
[1763134528037,0.00013089,96647.0,96640.0,0.00999999]
[1763134528289,0.10479654,96646.0,96640.0,0.00999999]
[1763134528637,0.01049274,96645.0,96640.0,0.00999999]
[1763134528906,0.00013089,96647.0,96640.0,0.00999999]
[1763134529132,0.00013089,96647.0,96640.0,0.02999997]
[1763134529370,0.00013089,96647.0,96640.0,0.06980343]
[1763134529834,0.00013089,96647.0,96641.0,0.04341874]
[1763134530923,0.00013089,96647.0,96643.0,0.36641874]
[1763134531248,0.00013089,96647.0,96644.0,0.04341874]
[1763134531911,0.00013089,96647.0,96641.0,0.323]
[1763134532145,0.00013089,96647.0,96630.0,0.5649123]
[1763134532146,0.10479654,96646.0,96630.0,0.5649123]
[1763134532384,0.01049274,96645.0,96630.0,0.5649123]
[1763134532640,0.10479654,96646.0,96630.0,0.5649123]
[1763134533108,0.10479654,96646.0,96630.0,0.55491231]
[1763134533331,0.10479654,96646.0,96630.0,0.5649123]
[1763134533549,0.10479654,96646.0,96641.0,0.001]
[1763134534220,0.10479654,96646.0,96630.0,0.57491229]
[1763134534446,0.10579654,96646.0,96630.0,0.5649123]
[1763134534865,0.10579654,96646.0,96630.0,0.58491228]
[1763134534866,0.11538928,96646.0,96630.0,0.58491228]
[1763134535080,0.10479654,96646.0,96630.0,0.58491228]
[1763134535530,0.06499308,96646.0,96631.0,0.2441]
[1763134535984,0.06499308,96646.0,96632.0,0.3907]
[1763134536200,0.20695112,96642.0,96632.0,0.3907]
[1763134536415,0.06599308,96646.0,96632.0,0.3907]
[1763134536873,0.20696048,96637.0,96632.0,0.3907]
[1763134537072,0.06599308,96646.0,96632.0,0.3907]
[1763134537291,0.27193442,96646.0,96632.0,0.3907]
[1763134537486,0.06599308,96646.0,96632.0,0.3907]
[1763134537828,0.06599308,96646.0,96636.0,0.55491231]
[1763134538037,0.06499308,96646.0,96636.0,0.55491231]
[1763134538498,0.00013089,96647.0,96640.0,0.00999999]
[1763134538953,0.00013089,96647.0,96641.0,0.3907]
[1763134539165,0.00013089,96647.0,96644.0,0.04341874]
[1763134539763,0.00013089,96647.0,96643.0,0.323]
[1763134539764,0.00013089,96647.0,96642.0,0.3907]
[1763134541059,0.00013089,96647.0,96642.0,0.3917]
[1763134542479,0.00013089,96647.0,96643.0,0.04341874]
[1763134542820,0.00013089,96647.0,96642.0,0.04341874]
[1763134543395,0.00013089,96647.0,96640.0,0.02999997]
[1763134543815,0.00013089,96647.0,96643.0,0.001]
[1763134544239,0.00013089,96647.0,96640.0,0.02999997]
[1763134544452,0.00013089,96647.0,96643.0,0.04502]
[1763134544828,0.00013089,96647.0,96644.0,0.36641874]
[1763134547059,0.00013089,96647.0,96644.0,0.36741874]
[1763134547268,0.00013089,96647.0,96645.0,0.09843]
[1763134547585,0.00013089,96647.0,96646.0,0.04341874]
[1763134548006,0.00013089,96647.0,96646.0,0.49306178]
[1763134548420,0.00013089,96647.0,96646.0,0.36641874]
[1763134548632,0.00013089,96647.0,96646.0,0.43485874]
[1763134549592,0.00013089,96647.0,96646.0,0.11285874]
[1763134549801,0.00013089,96647.0,96646.0,0.06944]
[1763134550012,0.00013089,96647.0,96646.0,0.001]
[1763134550262,0.00013089,96647.0,96640.0,0.01999998]
[1763134550455,0.00013089,96647.0,96646.0,0.002]
[1763134551089,0.00013089,96647.0,96640.0,0.02999997]
[1763134552314,0.00013089,96647.0,96641.0,0.06411389]
[1763134552518,0.00013089,96647.0,96646.0,0.04441874]
[1763134552722,0.00013089,96647.0,96646.0,0.06451274]
[1763134552922,0.00013089,96647.0,96646.0,0.42340574]
[1763134553071,0.00013089,96647.0,96646.0,0.40331174]
[1763134553346,0.00013089,96647.0,96646.0,0.47175174]
[1763134554266,0.00013089,96647.0,96646.0,0.11185874]
[1763134554462,0.00013089,96647.0,96646.0,0.11285874]
[1763134554885,0.00013089,96647.0,96646.0,0.140645]
[1763134555220,0.00013089,96647.0,96646.0,0.11285874]
[1763134555642,0.00013089,96647.0,96646.0,0.14065075]
[1763134555843,0.00013089,96647.0,96646.0,0.02779201]
[1763134556068,0.00013089,96647.0,96642.0,0.08031174]
[1763134556271,0.00013089,96647.0,96646.0,0.02879222]
[1763134556473,0.0103434,96680.0,96650.0,0.00999999]
[1763134556474,0.20687095,96679.0,96650.0,0.00999999]
[1763134556673,0.0926458,96678.0,96660.0,0.01999998]
[1763134556892,0.00968604,96677.0,96660.0,0.55491231]
[1763134557100,0.00968604,96676.0,96660.0,0.55491231]
[1763134557276,0.00968604,96675.0,96660.0,0.57491229]
[1763134557474,0.00968604,96674.0,96660.0,0.55491231]
[1763134557794,0.00968604,96673.0,96660.0,0.57491229]
[1763134557972,0.00968604,96672.0,96660.0,0.57491229]
[1763134558172,0.00013552,96679.0,96660.0,0.58491228]
[1763134558375,0.02905762,96678.0,96660.0,0.58491228]
[1763134558575,0.10479654,96665.0,96660.0,0.5649123]
[1763134558803,0.10479654,96665.0,96650.0,0.5649123]
[1763134559933,0.10479654,96665.0,96650.0,0.55491231]
[1763134560131,0.00968691,96664.0,96640.0,0.5649123]
[1763134560334,0.20690654,96662.0,96650.0,0.00999999]
[1763134560571,0.323,96676.0,96650.0,0.5649123]
[1763134560789,0.10479654,96661.0,96660.0,0.55491231]
[1763134561081,0.10479654,96661.0,96651.0,0.55491231]
[1763134561298,0.10479654,96661.0,96650.0,0.00999999]
[1763134561299,0.10479654,96661.0,96650.0,0.5649123]
[1763134561514,0.10479654,96661.0,96651.0,0.55491231]
[1763134561730,0.00013552,96679.0,96660.0,0.00999999]
[1763134561968,0.00968507,96678.0,96670.0,0.02999997]
[1763134562161,0.11448187,96677.0,96670.0,0.00999999]
[1763134562389,0.11448187,96677.0,96650.0,0.5649123]
[1763134562390,0.04051856,96676.0,96650.0,0.5649123]
[1763134562602,0.10479654,96653.0,96640.0,0.5649123]
[1763134562813,0.10479654,96662.0,96649.0,0.02779222]
[1763134563029,0.10479654,96662.0,96650.0,0.57714488]
[1763134563243,0.10479654,96659.0,96651.0,0.02223257]
[1763134563457,0.10479654,96659.0,96650.0,0.5649123]
[1763134563458,0.10479654,96659.0,96652.0,0.02223257]
[1763134563673,0.10479654,96659.0,96653.0,0.02223257]
[1763134563884,0.10479654,96659.0,96654.0,0.02223257]
[1763134564132,0.10479654,96659.0,96640.0,0.58491228]
[1763134564133,0.06023398,96658.0,96655.0,0.02223257]
[1763134564329,0.02906332,96657.0,96637.0,0.02779222]
[1763134564555,0.323,96658.0,96638.0,0.02224541]
[1763134564556,0.323,96654.0,96638.0,0.02224541]
[1763134564760,0.02906332,96653.0,96639.0,0.02224541]
[1763134564966,0.02906718,96652.0,96640.0,0.02224541]
[1763134565172,0.20692529,96654.0,96641.0,0.02224045]
[1763134565380,0.10479654,96642.0,96630.0,0.55491231]
[1763134565587,0.10479654,96642.0,96626.0,0.036893]
[1763134565793,0.10479654,96642.0,96625.0,0.036893]
[1763134566008,0.01047965,96641.0,96625.0,0.036893]
[1763134566218,0.10479654,96626.0,96621.0,0.036893]
[1763134566427,0.10479654,96626.0,96619.0,0.036893]
[1763134566631,0.10479654,96626.0,96621.0,0.00013089]
[1763134567049,0.11527619,96626.0,96621.0,0.00013089]
[1763134567876,0.10479654,96626.0,96621.0,0.00013089]
[1763134568082,0.10579654,96626.0,96621.0,0.00013089]
[1763134568718,0.323,96622.0,96621.0,0.00013089]
[1763134569814,0.02034446,96670.0,96621.0,0.00013089]
[1763134570034,0.10479654,96627.0,96621.0,0.00013089]
[1763134570242,0.001,96626.0,96621.0,0.00013089]
[1763134570655,0.01057965,96625.0,96621.0,0.00013089]
[1763134570904,0.323,96622.0,96621.0,0.00013089]
[1763134571325,0.53006291,96589.0,96587.0,0.00024228]
[1763134571533,0.323,96588.0,96587.0,0.00069373]
[1763134571949,0.58307034,96588.0,96587.0,0.00069373]
[1763134572159,0.53006505,96588.0,96587.0,0.00069373]
[1763134572386,0.323,96588.0,96587.0,0.00069373]
[1763134572595,0.323,96590.0,96587.0,0.00069373]
[1763134573015,0.10479654,96599.0,96587.0,0.00069373]
[1763134573016,0.07832627,96594.0,96587.0,0.00069373]
[1763134573219,0.323,96598.0,96587.0,0.00069373]
[1763134573424,0.10479654,96599.0,96587.0,0.00069373]
[1763134573681,0.10479654,96599.0,96589.0,0.81315684]
[1763134573886,0.001,96590.0,96589.0,0.81315684]
[1763134574091,0.001,96590.0,96587.0,0.00069373]
[1763134574527,0.10479654,96596.0,96587.0,0.00069373]
[1763134574746,0.10479654,96595.0,96587.0,0.00069373]
[1763134575580,0.002,96599.0,96587.0,0.03758673]
[1763134575816,0.002,96599.0,96589.0,0.85004984]
[1763134576061,0.002,96599.0,96596.0,0.036893]
[1763134576266,0.002,96599.0,96597.0,0.01331503]
[1763134576476,0.002,96599.0,96595.0,0.05555128]
[1763134576890,0.002,96599.0,96596.0,0.05555128]
[1763134577105,0.20694892,96643.0,96596.0,0.04636]
[1763134577313,0.20694711,96644.0,96606.0,0.03690793]
[1763134577523,0.20694121,96646.0,96617.0,0.81315684]
[1763134577733,0.20696685,96634.0,96617.0,0.81315684]
[1763134577935,0.01219297,96648.0,96610.0,0.81315684]
[1763134577936,0.01034768,96640.0,96610.0,0.81315684]
[1763134578140,0.07661365,96635.0,96617.0,0.81315684]
[1763134578341,0.10579654,96627.0,96617.0,0.81315684]
[1763134578586,0.10579654,96627.0,96617.0,0.7820678]
[1763134578791,0.10479654,96626.0,96617.0,0.75097876]
[1763134579005,0.10479654,96626.0,96617.0,0.81315684]
[1763134580057,0.00013542,96627.0,96617.0,0.81315684]
[1763134580262,0.10479654,96625.0,96617.0,0.81315684]
[1763134580466,0.10479654,96625.0,96615.0,0.81315684]
[1763134581313,0.001,96626.0,96615.0,0.81315684]
[1763134581504,0.00013542,96627.0,96623.0,0.03690793]
[1763134581712,0.00013542,96627.0,96625.0,0.04636]
[1763134582146,0.00013542,96627.0,96626.0,0.52906874]
[1763134582395,0.00013542,96627.0,96626.0,0.60313711]
[1763134582602,0.00013542,96627.0,96626.0,0.43485874]
[1763134584367,0.00013542,96627.0,96626.0,0.43585874]
[1763134584833,0.00013542,96627.0,96626.0,0.43485874]
[1763134585253,0.00013542,96627.0,96626.0,0.43685874]
[1763134586157,0.0002,96720.0,96680.0,0.01999998]
[1763134586390,0.00065229,96720.0,96710.0,0.81315684]
[1763134587052,0.00065229,96720.0,96710.0,0.83315682]
[1763134587261,0.10479654,96719.0,96710.0,0.01999998]
[1763134587486,0.00065229,96720.0,96710.0,0.83315682]
[1763134587703,0.00065229,96720.0,96712.0,0.03674245]
[1763134587921,0.00065229,96720.0,96719.0,0.04341874]
[1763134588139,0.00065229,96720.0,96719.0,0.36641874]
[1763134588351,0.00065229,96720.0,96710.0,0.01999998]
[1763134588352,0.00165229,96720.0,96712.0,0.03670309]
[1763134588562,0.00165229,96720.0,96713.0,0.03670309]
[1763134588799,0.00165229,96720.0,96710.0,0.83315682]
[1763134588800,0.00065229,96720.0,96718.0,0.03670309]
[1763134589019,0.00065229,96720.0,96716.0,0.42145452]
[1763134589239,0.00065229,96720.0,96719.0,0.04341874]
[1763134589447,0.00065229,96720.0,96719.0,0.0713701]
[1763134589661,0.00065229,96720.0,96719.0,0.04341874]
[1763134589914,0.0002,96760.0,96720.0,0.04341874]
[1763134590146,0.00033564,96750.0,96749.0,0.08977874]
[1763134590357,0.00033564,96750.0,96749.0,0.48117874]
[1763134590571,0.00033564,96750.0,96749.0,0.15817874]
[1763134591217,0.00033564,96750.0,96749.0,0.53615423]
[1763134591475,0.00033564,96750.0,96749.0,0.48117874]
[1763134592110,0.00033564,96750.0,96749.0,0.48217874]
[1763134592415,0.00033564,96750.0,96749.0,0.41377874]
[1763134592624,0.00033564,96750.0,96749.0,0.324]
[1763134594059,0.00033564,96750.0,96745.0,0.06836]
[1763134594266,0.00033564,96750.0,96746.0,0.45993874]
[1763134594678,0.00033564,96750.0,96748.0,0.04341874]
[1763134594945,0.00033564,96750.0,96749.0,0.04441874]
[1763134595158,0.00033564,96750.0,96749.0,0.13793874]
[1763134595503,0.00033564,96750.0,96749.0,0.04341874]
[1763134595711,0.2066052,96803.0,96770.0,0.01999998]
[1763134595915,0.10479654,96792.0,96770.0,0.01999998]
[1763134596116,0.10479654,96792.0,96760.0,0.323]
[1763134596117,0.10479654,96777.0,96760.0,0.34299998]
[1763134596316,0.03114549,96776.0,96770.0,0.81315684]
[1763134596518,0.00013546,96803.0,96770.0,0.81315684]
[1763134596718,0.20664826,96783.0,96770.0,0.81315684]
[1763134597034,0.10479654,96785.0,96770.0,0.81315684]
[1763134598532,0.10679654,96785.0,96770.0,0.81315684]
[1763134599194,0.20668855,96764.0,96750.0,0.81315684]
[1763134599419,0.20668855,96764.0,96740.0,0.01999998]
[1763134599420,0.10479654,96753.0,96740.0,0.81315684]
[1763134599622,0.10479654,96768.0,96743.0,0.81315684]
[1763134599820,0.10479654,96768.0,96756.0,0.81315684]
[1763134600023,0.10479654,96768.0,96750.0,0.81315684]
[1763134600246,0.10479654,96768.0,96740.0,0.01999998]
[1763134600247,0.10479654,96753.0,96740.0,0.81315684]
[1763134600444,0.10479654,96753.0,96740.0,0.81329248]
[1763134600618,0.10479654,96753.0,96740.0,0.83329246]
[1763134600819,0.10479654,96753.0,96740.0,0.81329248]
[1763134601278,0.10479654,96753.0,96740.0,0.00013564]
[1763134601661,0.10579654,96753.0,96740.0,0.00013564]
[1763134601901,0.20673364,96743.0,96740.0,0.00013564]
[1763134602019,0.52973757,96741.0,96740.0,0.00013564]
[1763134603261,0.79351102,96741.0,96740.0,0.00013564]
[1763134603471,0.8971804,96741.0,96740.0,0.00013564]
[1763134604100,0.9252416,96741.0,96740.0,0.00013564]
[1763134604730,0.82157222,96741.0,96740.0,0.00013564]
[1763134604935,0.58759802,96741.0,96740.0,0.00013564]
[1763134605361,0.71783502,96741.0,96740.0,0.00013564]
[1763134605974,0.58585946,96741.0,96740.0,0.00013564]
[1763134607031,0.58585946,96741.0,96690.0,0.01999998]
[1763134607032,0.01033912,96720.0,96690.0,0.01999998]
[1763134607242,0.52984419,96692.0,96670.0,0.81315684]
[1763134607454,0.52984419,96692.0,96650.0,1.51921441]
[1763134607455,0.01034233,96690.0,96657.0,0.03639989]
[1763134607671,0.01034233,96690.0,96631.0,0.09352]
[1763134607672,0.0103434,96680.0,96643.0,0.03639989]
[1763134607888,0.20688263,96674.0,96642.0,0.03639989]
[1763134608095,0.20689647,96667.0,96642.0,0.03639989]
[1763134608302,0.10479654,96652.0,96647.0,0.03639989]
[1763134608719,0.10479654,96652.0,96648.0,0.03639989]
[1763134609142,0.3333434,96680.0,96649.0,0.03639989]
[1763134609355,0.3333434,96680.0,96649.0,0.05497549]
[1763134609356,0.10479654,96654.0,96649.0,0.05497549]
[1763134609570,0.10479654,96654.0,96650.0,0.81315684]
[1763134609779,0.3333434,96680.0,96650.0,0.86813233]
[1763134609988,0.10479654,96655.0,96651.0,0.05497549]
[1763134610187,0.10479654,96655.0,96650.0,0.81315684]
[1763134611341,0.3333434,96680.0,96647.0,0.00045229]
[1763134611544,0.3333434,96680.0,96650.0,0.81315684]
[1763134611545,0.10479654,96657.0,96650.0,0.81315684]
[1763134611755,0.10479654,96681.0,96650.0,0.90645748]
[1763134611954,0.10479654,96681.0,96661.0,0.05487896]
[1763134612171,0.10479654,96681.0,96671.0,0.03658514]
[1763134612594,0.10479654,96681.0,96675.0,0.03658514]
[1763134613139,0.10479654,96681.0,96677.0,0.03658514]
[1763134613263,0.20687025,96679.0,96676.0,0.03658514]
[1763134613647,0.10479654,96681.0,96677.0,0.03658514]
[1763134613861,0.20687229,96678.0,96676.0,0.03658514]
[1763134614066,0.06027797,96676.0,96671.0,0.03658514]
[1763134614330,0.00013519,96676.0,96671.0,0.03658514]
[1763134614517,0.20701264,96676.0,96671.0,0.03658514]
[1763134615135,0.00013519,96676.0,96672.0,0.2441]
[1763134615338,0.20687871,96675.0,96672.0,0.2441]
[1763134615543,0.00013519,96676.0,96672.0,0.2441]
[1763134615751,0.00113519,96676.0,96672.0,0.2441]
[1763134615959,0.20689369,96668.0,96667.0,0.03658514]
[1763134616175,0.20690868,96661.0,96657.0,0.05487896]
[1763134616411,0.10479654,96658.0,96656.0,0.05487896]
[1763134616625,0.20691938,96656.0,96655.0,0.05487896]
[1763134616837,0.20691938,96656.0,96654.0,0.05487896]
[1763134617048,0.2069258,96653.0,96651.0,0.03667971]
[1763134617265,0.2069258,96653.0,96616.0,0.09185612]
[1763134617266,0.20693651,96648.0,96645.0,0.03667971]
[1763134617478,0.20693532,96649.0,96645.0,0.03667971]
[1763134617694,0.20694079,96646.0,96645.0,0.03667971]
[1763134617911,0.20694079,96646.0,96644.0,0.03667971]
[1763134618317,0.20694507,96644.0,96642.0,0.03667971]
[1763134618518,0.20694507,96644.0,96639.0,0.03667971]
[1763134618519,0.10479654,96643.0,96639.0,0.03667971]
[1763134618725,0.3117454,96643.0,96639.0,0.03667971]
[1763134618933,0.10479654,96643.0,96639.0,0.00045229]
[1763134619143,0.20695364,96640.0,96639.0,0.00045229]
[1763134619350,0.10479654,96643.0,96639.0,0.00045229]
[1763134619561,0.20695216,96641.0,96639.0,0.00045229]
[1763134619783,0.10479654,96640.0,96639.0,0.00045229]
[1763134619993,0.42779654,96640.0,96639.0,0.00045229]
[1763134620205,0.43751654,96640.0,96639.0,0.00045229]
[1763134620421,0.42779654,96640.0,96639.0,0.00045229]
[1763134621059,0.10479654,96640.0,96639.0,0.00045229]
[1763134621277,0.01034233,96690.0,96639.0,0.00045229]
[1763134621517,0.10479654,96656.0,96650.0,0.81315684]
[1763134621785,0.31166436,96681.0,96646.0,0.81315684]
[1763134621786,0.10479654,96664.0,96646.0,0.81315684]
[1763134622002,0.10479654,96663.0,96654.0,0.81315684]
[1763134622217,0.10479654,96663.0,96650.0,0.83315682]
[1763134622427,0.323,96680.0,96660.0,0.01999998]
[1763134622662,0.10479654,96681.0,96670.0,0.81315684]
[1763134622663,0.01918888,96679.0,96670.0,0.81315684]
[1763134622858,0.002,96681.0,96670.0,0.83315682]
[1763134623072,0.01918777,96680.0,96670.0,0.83315682]
[1763134623282,0.002,96681.0,96670.0,0.83315682]
[1763134623495,0.002,96681.0,96644.0,0.323]
[1763134623496,0.10479654,96679.0,96660.0,0.83315682]
[1763134623709,0.10479654,96679.0,96650.0,0.01999998]
[1763134623710,0.10479654,96664.0,96650.0,0.01999998]
[1763134623921,0.10479654,96664.0,96640.0,0.83315682]
[1763134624096,0.20691474,96659.0,96650.0,0.81315684]
[1763134624392,0.20691593,96658.0,96650.0,0.81315684]
[1763134624602,0.10479654,96664.0,96650.0,0.81315684]
[1763134624809,0.33347965,96663.0,96640.0,0.01999998]
[1763134625012,0.33347965,96663.0,96620.0,0.06836]
[1763134625013,0.10479654,96664.0,96650.0,0.83315682]
[1763134625426,0.10479654,96664.0,96650.0,0.81315684]
[1763134625655,0.20691186,96660.0,96650.0,0.81315684]
[1763134625867,0.11527619,96664.0,96640.0,0.83315682]
[1763134625868,0.323,96662.0,96640.0,0.83315682]
[1763134626076,0.10479654,96645.0,96640.0,0.81315684]
[1763134626506,0.10479654,96644.0,96640.0,0.83315682]
[1763134626717,0.10479654,96644.0,96640.0,0.81315684]
[1763134626930,0.06347052,96661.0,96640.0,0.01999998]
[1763134627143,0.10479654,96646.0,96640.0,0.01999998]
[1763134627557,0.00013516,96661.0,96640.0,0.01999998]
[1763134627774,0.01919338,96660.0,96640.0,0.01999998]
[1763134628004,0.00013516,96661.0,96641.0,0.1466]
[1763134628216,0.00013516,96661.0,96640.0,0.01999998]
[1763134628217,0.00013516,96661.0,96650.0,1.75889594]
[1763134628421,0.00013516,96661.0,96650.0,1.76889593]
[1763134628629,0.00013516,96661.0,96650.0,0.57397399]
[1763134628843,0.10479654,96660.0,96650.0,0.55397401]
[1763134629048,0.1321353,96660.0,96650.0,0.55397401]
[1763134629260,0.10579654,96660.0,96650.0,0.55397401]
[1763134629525,0.10579654,96660.0,96650.0,0.57397399]
[1763134629526,0.10479654,96659.0,96650.0,0.57397399]
[1763134629746,0.01921248,96658.0,96650.0,0.57397399]
[1763134629955,0.01921324,96658.0,96648.0,0.55397401]
[1763134630173,0.01921324,96657.0,96648.0,0.55397401]
[1763134630588,0.323,96658.0,96650.0,0.01999998]
[1763134630831,0.001,96660.0,96650.0,0.01999998]
[1763134631028,0.00013516,96661.0,96650.0,0.01999998]
[1763134631237,0.001,96658.0,96650.0,1.21492192]
[1763134631444,0.00013516,96661.0,96650.0,1.21492192]
[1763134631670,0.01923444,96660.0,96650.0,1.21492192]
[1763134631884,0.001,96658.0,96650.0,1.21492192]
[1763134632088,0.00013516,96661.0,96650.0,1.21492192]